bitfinex/quotes_ETHUSD_20250721
["timestamp","ask_amount","ask_price","bid_price","bid_amount"]
[1753087474414,4.5162,3789.7,3789.6,2.63880092]
[1753087474603,4.5152,3789.7,3789.6,3.24262916]
[1753087474782,4.5152,3789.7,3789.6,2.63880092]
[1753087476713,4.384,3789.7,3789.6,2.63880092]
[1753087478030,0.002,3789.9,3789.8,2.63866167]
[1753087478240,4.383,3789.9,3789.8,2.63866167]
[1753087478531,4.383,3789.9,3789.8,2.76986167]
[1753087479820,4.382,3789.9,3789.8,2.76986167]
[1753087481944,4.381,3789.9,3789.8,2.76986167]
[1753087482643,0.002,3789.9,3789.8,2.76986167]
[1753087482828,0.002,3789.9,3789.8,3.65252793]
[1753087483007,0.002,3789.9,3789.8,4.45412793]
[1753087483504,4.379,3789.9,3789.8,4.45412793]
[1753087483705,0.002,3789.9,3789.8,4.45412793]
[1753087483905,4.379,3789.9,3789.8,4.45412793]
[1753087484201,4.379,3789.9,3789.8,4.11232793]
[1753087484406,4.8507,3789.9,3789.8,2.63866167]
[1753087484842,4.8507,3789.9,3789.5,0.1312]
[1753087485045,1.0217,3789.8,3788.8,3.42422374]
[1753087485341,0.6812,3789.7,3789.6,2.63879793]
[1753087485520,1.1529,3789.7,3789.6,2.63879793]
[1753087486741,5.5269,3789.7,3789.6,2.63879793]
[1753087487043,1.1529,3789.7,3789.6,2.63879793]
[1753087487231,5.5269,3789.7,3789.6,2.63879793]
[1753087487429,5.5269,3789.7,3789.1,0.1322]
[1753087487627,5.0552,3789.7,3789.4,2.63891275]
[1753087487820,0.4717,3789.6,3789.5,2.63886672]
[1753087489630,5.0552,3789.7,3789.6,2.63880092]
[1753087489924,5.9229,3789.7,3789.6,2.63880092]
[1753087490122,4.9012,3789.7,3789.6,2.63880092]
[1753087490434,9.692,3789.7,3789.4,0.1312]
[1753087490752,4.8427,3789.6,3789.5,2.63880353]
[1753087490914,4.8427,3789.6,3789.4,2.63892099]
[1753087491115,4.371,3789.6,3789.5,2.63887056]
[1753087491654,4.8427,3789.6,3789.5,2.63887056]
[1753087492236,0.4717,3789.6,3789.5,2.63887056]
[1753087492436,4.8417,3789.6,3789.5,2.63887056]
[1753087492814,5.3917,3789.6,3789.5,2.63887056]
[1753087493159,0.55,3789.5,3789.4,2.63892358]
[1753087493343,1.0217,3789.5,3789.4,2.63892358]
[1753087493557,1.1529,3789.5,3789.4,2.63892358]
[1753087494838,0.6812,3789.5,3789.4,2.63892358]
[1753087495048,1.962,3789.5,3789.4,2.63892358]
[1753087495249,1.962,3789.5,3789.2,2.63901131]
[1753087495527,0.55,3789.3,3789.2,2.63907948]
[1753087495757,5.7917,3789.3,3789.2,2.63907948]
[1753087498643,5.7917,3789.3,3789.1,0.001]
[1753087498842,4.365,3789.2,3789.1,2.64014913]
[1753087499047,4.4962,3789.2,3789.1,2.64014913]
[1753087499253,4.77,3789.3,3789.2,2.63907948]
[1753087499428,9.134,3789.3,3789.2,2.63907948]
[1753087499832,4.77,3789.3,3789.2,4.2050454]
[1753087500066,9.134,3789.3,3789.2,4.2050454]
[1753087500848,9.134,3789.3,3789.2,3.40007948]
[1753087501271,9.133,3789.3,3789.2,3.40007948]
[1753087503568,9.132,3789.3,3789.2,3.40007948]
[1753087504080,0.002,3789.9,3789.2,3.40007948]
[1753087504081,4.77,3789.8,3789.5,2.63887056]
[1753087504237,4.77,3789.8,3789.7,2.63873129]
[1753087504576,9.13,3789.8,3789.7,2.63873129]
[1753087504936,4.77,3789.8,3789.7,2.63873129]
[1753087505150,4.77,3789.8,3789.7,3.79363129]
[1753087505351,4.77,3789.8,3789.7,3.92483129]
[1753087505565,4.77,3789.8,3789.7,4.6339797]
[1753087505566,9.129,3789.8,3789.7,4.6339797]
[1753087505875,4.77,3789.8,3789.7,4.6339797]
[1753087506076,9.129,3789.8,3789.7,4.6339797]
[1753087507541,4.359,3789.8,3789.7,4.6339797]
[1753087507876,0.002,3789.9,3789.8,2.63866167]
[1753087508047,4.359,3789.9,3789.8,4.02439108]
[1753087509183,0.002,3789.9,3789.8,4.02439108]
[1753087509343,4.358,3789.9,3789.8,4.02439108]
[1753087509882,4.358,3789.9,3789.8,2.63866167]
[1753087510254,4.8297,3789.9,3789.8,2.63866167]
[1753087511092,4.358,3789.9,3789.8,2.63866167]
[1753087511701,4.357,3789.9,3789.8,2.63866167]
[1753087512021,1e-08,3789.9,3789.8,2.63866167]
[1753087512154,1e-08,3789.9,3789.8,5.3408776]
[1753087512359,1e-08,3790.0,3789.9,3.46139204]
[1753087512697,1e-08,3790.0,3789.9,3.80319204]
[1753087512907,1e-08,3790.0,3789.9,10.81439204]
[1753087513198,1e-08,3790.0,3789.9,11.15619204]
[1753087513499,1e-08,3790.0,3789.9,13.29110858]
[1753087513996,1e-08,3790.7,3790.6,2.63810478]
[1753087514310,1e-08,3790.7,3790.6,6.55050478]
[1753087514451,4.35100001,3791.3,3791.2,3.41628727]
[1753087514651,4.35100001,3791.3,3791.2,3.54748727]
[1753087514854,4.35100001,3791.3,3791.2,3.936416]
[1753087515660,0.4728,3791.9,3791.4,2.63754813]
[1753087515856,4.352,3791.5,3791.4,2.63754813]
[1753087516054,0.002,3791.5,3791.4,2.63754813]
[1753087516258,1e-08,3791.5,3791.4,2.63754813]
[1753087516493,1e-08,3791.5,3791.4,4.02781412]
[1753087517482,1e-08,3791.5,3791.4,7.36961412]
[1753087517681,1e-08,3791.5,3791.4,8.14741412]
[1753087518686,1e-08,3791.5,3791.4,7.80561412]
[1753087518882,1e-08,3791.5,3791.4,4.02781412]
[1753087519207,1e-08,3791.5,3791.4,2.76874813]
[1753087527120,1e-08,3791.5,3791.4,3.11054813]
[1753087527630,1e-08,3791.5,3791.4,3.90004813]
[1753087527839,1e-08,3791.5,3791.4,3.55824813]
[1753087528525,1e-08,3791.5,3791.4,3.90004813]
[1753087528725,1e-08,3791.5,3791.4,4.98802167]
[1753087529240,0.1312,3792.6,3792.5,2.63678312]
[1753087529406,1.2989,3792.8,3792.6,2.6367136]
[1753087529725,0.4728,3792.6,3792.5,2.63677392]
[1753087530110,4.8088,3792.6,3792.5,2.63677392]
[1753087530424,4.336,3792.6,3792.5,2.63677392]
[1753087530629,6.4622,3792.7,3792.6,2.6367136]
[1753087530815,10.667,3792.7,3792.6,2.6367136]
[1753087531201,11.1398,3792.7,3792.6,2.6367136]
[1753087532924,11.1378,3792.7,3792.6,2.6367136]
[1753087533332,6.8038,3792.7,3792.6,2.6367136]
[1753087533538,11.1378,3792.7,3792.6,2.6367136]
[1753087534602,6.8038,3792.7,3792.6,2.6367136]
[1753087534831,11.1368,3792.7,3791.8,0.7718]
[1753087535040,11.1368,3792.7,3791.3,3.0]
[1753087535041,10.7952,3792.7,3792.6,2.6367136]
[1753087535232,11.3452,3792.7,3792.6,2.6367136]
[1753087535739,11.818,3792.7,3792.6,2.6367136]
[1753087540845,0.55,3792.4,3791.7,0.1312]
[1753087541051,0.6812,3792.4,3792.3,2.63686808]
[1753087541233,5.0082,3792.4,3792.3,2.63686808]
[1753087541852,5.4734,3792.4,3792.3,2.63686808]
[1753087542819,5.4724,3792.4,3792.3,2.63686808]
[1753087546036,10.2424,3792.4,3792.3,2.63686808]
[1753087547751,5.9164,3792.4,3792.3,2.63686808]
[1753087548157,9.7722,3792.4,3792.3,2.63686808]
[1753087548367,9.2222,3792.4,3792.3,2.63686808]
[1753087548538,4.77,3792.4,3792.3,2.63686808]
[1753087548737,9.09,3792.4,3792.3,3.16425572]
[1753087548964,9.09,3792.4,3792.3,2.63686808]
[1753087551048,4.77,3792.4,3792.3,2.63686808]
[1753087551249,9.088,3792.4,3792.3,2.76806808]
[1753087551547,0.002,3792.9,3792.8,2.63657456]
[1753087551768,4.32,3792.9,3792.8,2.63657456]
[1753087552569,4.7852,3792.9,3792.8,2.63657456]
[1753087552870,0.4672,3792.9,3792.8,2.63657456]
[1753087553077,4.7842,3792.9,3792.8,2.63657456]
[1753087555384,0.002,3792.9,3792.8,2.63657456]
[1753087555588,0.002,3792.9,3792.8,3.17701764]
[1753087555759,0.002,3793.4,3793.3,2.63622703]
[1753087556176,4.316,3793.4,3793.3,2.63622703]
[1753087556582,0.002,3793.4,3793.3,2.63622703]
[1753087556894,4.316,3793.4,3793.3,2.63622703]
[1753087557985,4.7812,3793.4,3793.3,2.63622703]
[1753087558953,4.9124,3793.4,3793.3,2.63622703]
[1753087560192,0.55,3793.1,3792.3,0.1312]
[1753087560515,1.4807,3792.7,3792.6,2.63666908]
[1753087560808,6.2559,3792.7,3792.6,2.63666908]
[1753087561900,1.9459,3792.7,3792.6,2.63666908]
[1753087562058,6.2549,3792.7,3792.6,2.63666908]
[1753087562482,0.6812,3792.7,3792.6,2.63666908]
[1753087562707,4.9902,3792.7,3792.6,2.63666908]
[1753087562855,4.9892,3792.7,3792.6,2.63666908]
[1753087563055,4.4392,3792.7,3792.6,2.63666908]
[1753087563510,0.1312,3792.7,3792.6,2.63666908]
[1753087563708,4.4382,3792.7,3792.6,2.63666908]
[1753087563910,4.9034,3792.7,3792.6,2.63666908]
[1753087565782,0.55,3792.6,3792.5,2.63678312]
[1753087566005,0.55,3792.6,3791.7,0.8157]
[1753087566006,1.0152,3792.6,3791.7,0.8157]
[1753087566170,0.6812,3792.4,3792.2,2.63693298]
[1753087566377,4.305,3792.3,3792.2,2.63699171]
[1753087566790,0.6812,3792.4,3792.3,2.63692218]
[1753087567133,3.64,3792.7,3792.6,2.6367136]
[1753087567311,7.945,3792.7,3792.6,2.6367136]
[1753087567483,8.4102,3792.7,3792.6,2.6367136]
[1753087568627,4.1052,3792.7,3792.6,2.6367136]
[1753087568809,8.4092,3792.7,3792.6,2.6367136]
[1753087569739,8.4082,3792.7,3792.6,2.6367136]
[1753087572487,0.6812,3792.6,3791.8,0.1312]
[1753087572694,5.3065,3792.5,3792.4,2.63683723]
[1753087575592,8.3965,3792.5,3792.4,2.63683723]
[1753087575786,0.55,3792.4,3792.3,2.63689652]
[1753087575992,1.1367,3792.4,3792.3,2.63689652]
[1753087578247,4.2267,3792.4,3791.8,0.1322]
[1753087578464,1.3218,3792.1,3792.0,2.6371308]
[1753087578648,6.2045,3792.1,3792.0,2.6371308]
[1753087581051,0.55,3792.0,3791.8,0.001]
[1753087581252,4.844,3791.9,3791.8,2.63826989]
[1753087581555,8.3895,3791.9,3791.8,0.001]
[1753087581915,7.98056056,3791.9,3791.8,0.001]
[1753087582734,14.4401609,3791.9,3791.8,0.001]
[1753087585132,7.9179,3791.9,3791.8,0.001]
[1753087585549,12.2079,3791.9,3791.8,0.001]
[1753087586774,7.9179,3791.9,3791.8,0.001]
[1753087586976,4.9179,3791.9,3791.8,0.001]
[1753087587191,9.2079,3791.9,3791.8,0.001]
[1753087587472,4.9179,3791.9,3791.8,0.001]
[1753087587774,9.2069,3791.9,3791.8,0.001]
[1753087588343,9.2059,3791.9,3791.8,0.001]
[1753087588539,4.9179,3791.9,3791.8,0.001]
[1753087588739,9.2059,3791.9,3791.8,0.001]
[1753087590063,4.4528,3791.8,3791.3,0.001]
[1753087590279,7.38259576,3791.4,3791.3,0.001]
[1753087590586,14.30714389,3791.4,3791.3,0.001]
[1753087590885,6.1084,3791.4,3791.3,0.001]
[1753087591086,8.74594813,3791.4,3791.3,0.001]
[1753087591290,6.1084,3791.4,3791.3,0.001]
[1753087591692,8.74594813,3791.4,3791.3,0.001]
[1753087592289,6.1084,3791.4,3791.3,0.001]
[1753087592497,8.74594813,3791.4,3791.3,0.001]
[1753087592683,6.1084,3791.4,3791.3,0.001]
[1753087592989,11.83594813,3791.4,3791.3,0.001]
[1753087593397,14.83594813,3791.4,3791.3,0.001]
[1753087598900,44.83594813,3791.4,3791.3,0.001]
[1753087599307,3.18810478,3790.6,3790.5,0.001]
[1753087599477,20.37420054,3790.6,3790.5,0.001]
[1753087599802,20.82970054,3790.6,3790.5,0.001]
[1753087603386,21.03251018,3790.6,3790.5,0.001]
[1753087604185,51.03251018,3790.6,3790.5,0.001]
[1753087604683,6.99876167,3789.8,3789.7,0.001]
[1753087604884,20.36945743,3789.8,3789.7,0.001]
[1753087605102,20.84045743,3789.8,3789.7,0.001]
[1753087606413,27.17145743,3789.8,3789.7,0.001]
[1753087606566,18.0441,3789.8,3789.7,0.001]
[1753087606771,0.55,3789.1,3787.1,0.7737]
[1753087606973,13.00603254,3788.4,3787.1,1.1165]
[1753087607268,17.28203254,3788.4,3787.1,1.1165]
[1753087607501,17.75303254,3788.4,3787.4,2.64031881]
[1753087607687,17.75303254,3788.4,3787.3,2.64038331]
[1753087608110,17.75303254,3788.4,3787.2,2.64046212]
[1753087608609,17.75303254,3788.4,3787.1,3.44063523]
[1753087608781,13.47703254,3788.4,3787.4,2.64027985]
[1753087608980,17.75103254,3788.4,3787.4,2.64032073]
[1753087609295,11.73433678,3788.4,3787.1,0.7737]
[1753087609910,11.73433678,3788.4,3787.1,3.41423584]
[1753087610205,11.73433678,3788.4,3787.2,2.640418]
[1753087610784,11.73433678,3788.4,3787.2,2.64047239]
[1753087611108,11.73433678,3788.4,3787.4,2.64028125]
[1753087611109,11.73533678,3788.4,3787.4,2.64028125]
[1753087612011,11.73533678,3788.4,3787.2,2.64047239]
[1753087612181,7.46033678,3788.4,3787.5,2.64024373]
[1753087612393,7.46033678,3788.4,3787.1,0.7737]
[1753087612394,11.73333678,3788.4,3787.1,3.41424097]
[1753087613019,11.73333678,3788.4,3787.4,2.64032745]
[1753087613211,11.73333678,3788.4,3787.3,2.6404022]
[1753087613413,7.46033678,3788.4,3787.1,0.7737]
[1753087613622,11.73233678,3788.4,3787.6,2.64012508]
[1753087614124,14.80933678,3788.4,3787.6,2.64012508]
[1753087614323,14.80933678,3788.4,3787.5,2.64024208]
[1753087614527,14.80933678,3788.4,3787.6,2.64018429]
[1753087614830,14.80933678,3788.4,3787.6,2.64018599]
[1753087615012,14.80933678,3788.4,3787.4,2.64032254]
[1753087615523,14.80933678,3788.4,3787.5,2.64025093]
[1753087616291,14.80833678,3788.4,3787.5,2.64025093]
[1753087616794,14.80833678,3788.4,3787.6,2.64018846]
[1753087616989,14.80733678,3788.4,3787.7,2.64012364]
[1753087617222,14.80733678,3788.4,3787.6,2.64016682]
[1753087617808,14.80733678,3788.4,3787.7,2.64012214]
[1753087618011,14.80733678,3788.4,3787.6,2.64016651]
[1753087618209,14.80733678,3788.4,3787.5,2.64024076]
[1753087618532,14.80633678,3788.4,3787.5,2.64024076]
[1753087618731,14.80633678,3788.4,3787.4,2.64031169]
[1753087618891,14.80633678,3788.4,3787.1,3.41423838]
[1753087619226,14.80633678,3788.4,3787.4,2.64033162]
[1753087619402,10.53733678,3788.4,3787.5,2.64024905]
[1753087619726,14.80633678,3788.4,3787.5,2.64024905]
[1753087619933,0.55,3788.1,3787.5,2.64024905]
[1753087620153,3.55,3787.9,3787.3,2.64037648]
[1753087620300,3.55,3787.9,3787.4,2.64032297]
[1753087620508,7.818,3787.9,3787.7,2.64006249]
[1753087620741,7.818,3787.9,3787.4,2.64032479]
[1753087621029,7.818,3787.9,3787.6,2.64017616]
[1753087621395,3.55,3787.9,3787.8,2.64105491]
[1753087621644,7.817,3787.9,3787.8,3.41655491]
[1753087621800,7.817,3787.9,3787.8,0.001]
[1753087622006,8.288,3787.9,3787.8,0.001]
[1753087622643,0.55,3787.9,3787.8,2.64105491]
[1753087622848,4.818,3787.9,3787.8,2.64105491]
[1753087623123,0.55,3787.9,3787.8,2.64105491]
[1753087623347,4.817,3787.9,3787.8,2.98385491]
[1753087623651,9.411,3788.0,3787.9,2.63998521]
[1753087623952,9.5422,3788.0,3787.9,3.58603922]
[1753087624127,9.411,3788.0,3787.9,4.40703922]
[1753087624327,0.1312,3788.4,3788.3,2.63970646]
[1753087624577,3.076,3788.8,3788.7,3.46042777]
[1753087624849,7.341,3788.8,3788.7,3.80322777]
[1753087625451,3.076,3788.8,3788.7,3.80322777]
[1753087625637,3.076,3788.8,3788.7,4.4501413]
[1753087625972,3.076,3789.4,3789.3,2.63900984]
[1753087626118,3.076,3789.4,3788.3,2.63970646]
[1753087626119,7.341,3789.4,3788.4,1.1243]
[1753087626322,0.55,3788.9,3788.5,2.63956711]
[1753087626532,0.1312,3788.6,3788.4,3.42111671]
[1753087626855,4.264,3788.5,3788.2,2.6397271]
[1753087627016,4.264,3788.5,3787.9,0.8117]
[1753087627017,0.58294487,3788.4,3787.9,0.8117]
[1753087627215,4.264,3788.3,3788.1,2.63978961]
[1753087627618,0.1312,3788.1,3787.9,3.4516251]
[1753087627844,4.264,3788.0,3787.9,3.4516251]
[1753087628252,4.264,3788.0,3787.8,2.64100916]
[1753087628549,0.1312,3787.9,3787.8,2.64105491]
[1753087629351,0.6812,3787.9,3787.8,2.64105491]
[1753087629534,0.6812,3787.9,3787.8,0.001]
[1753087630765,6.88983008,3787.9,3787.8,0.001]
[1753087630927,9.85688521,3787.9,3787.8,0.001]
[1753087631128,15.88223841,3787.9,3787.8,0.001]
[1753087632080,15.88223841,3787.9,3786.1,0.132]
[1753087632081,0.55,3787.7,3786.1,0.132]
[1753087632283,6.41345491,3787.8,3786.6,2.64082843]
[1753087632284,0.55,3786.9,3786.6,2.64082843]
[1753087632507,0.132,3786.6,3786.5,2.6409613]
[1753087632843,4.392,3786.6,3786.5,2.6409613]
[1753087633043,4.392,3786.6,3786.5,2.9837613]
[1753087633496,0.03294487,3787.3,3787.0,2.6405997]
[1753087633796,4.809,3787.2,3787.0,2.6405997]
[1753087634092,7.809,3787.2,3787.1,2.64054289]
[1753087634244,0.682,3787.1,3787.0,2.64061262]
[1753087634445,0.682,3787.1,3786.7,2.64081362]
[1753087634446,0.55,3787.1,3786.7,2.64081362]
[1753087634645,0.132,3786.9,3786.7,2.64081362]
[1753087634872,4.259,3786.8,3786.7,2.64080054]
[1753087635550,0.132,3786.9,3786.8,2.64075208]
[1753087635884,4.39,3786.9,3786.8,2.64075208]
[1753087636087,0.132,3786.9,3786.8,2.64075208]
[1753087636381,4.39,3786.9,3786.2,0.8034]
[1753087636586,0.132,3786.6,3786.5,2.64090124]
[1753087636789,4.257,3786.6,3786.3,2.64110081]
[1753087636998,4.257,3786.6,3786.5,2.6409613]
[1753087637394,4.257,3786.6,3786.3,2.64110081]
[1753087637610,0.55,3787.0,3786.6,2.6408768]
[1753087637794,0.55,3786.8,3786.6,2.6408768]
[1753087637992,4.807,3786.7,3786.6,2.6408768]
[1753087638691,0.55,3786.6,3786.5,2.64094004]
[1753087638895,0.55,3786.6,3786.4,2.64101511]
[1753087639127,4.256,3786.5,3786.2,3.4445559]
[1753087639413,4.256,3786.5,3786.3,2.64107778]
[1753087640109,4.256,3786.5,3786.2,0.8034]
[1753087640310,4.256,3786.5,3786.4,2.64103105]
[1753087640513,4.255,3786.5,3786.3,2.64108669]
[1753087640880,4.255,3786.5,3786.4,2.64103105]
[1753087642026,4.255,3786.5,3785.6,2.64158918]
[1753087642027,0.55,3786.4,3785.6,2.64158918]
[1753087642184,7.334,3786.3,3786.1,2.64117478]
[1753087642576,4.254,3786.3,3786.1,2.64117478]
[1753087642808,4.254,3786.3,3785.9,2.64137985]
[1753087642989,4.254,3786.3,3786.1,2.64123837]
[1753087643397,4.254,3786.3,3785.8,0.001]
[1753087643398,4.254,3786.3,3786.0,2.64128562]
[1753087643729,0.55,3786.1,3785.8,0.001]
[1753087643924,15.35033003,3785.9,3785.8,0.001]
[1753087644081,15.35033003,3785.9,3785.0,0.001]
[1753087644082,0.55,3785.5,3785.0,0.001]
[1753087644425,0.55,3785.1,3785.0,0.001]
[1753087644628,4.83594487,3785.1,3785.0,0.001]
[1753087645130,5.29564487,3785.1,3785.0,0.001]
[1753087645278,7.93758299,3785.1,3785.0,0.001]
[1753087645481,7.90463812,3785.1,3785.0,0.001]
[1753087646997,10.90463812,3785.1,3785.0,0.001]
[1753087648217,0.55,3785.1,3785.0,0.001]
[1753087648517,0.03294487,3785.5,3785.1,2.64193812]
[1753087648718,0.132,3785.3,3785.2,0.3428]
[1753087648924,0.132,3785.3,3785.2,2.98466832]
[1753087649115,0.132,3785.3,3785.2,2.64186832]
[1753087649617,0.132,3785.3,3785.2,2.98466832]
[1753087649825,6.339,3786.2,3785.6,0.7909]
[1753087650024,4.28394487,3786.1,3785.6,0.7909]
[1753087650208,4.28394487,3786.1,3785.6,2.64154438]
[1753087650514,0.4597,3786.0,3785.6,2.64154438]
[1753087650686,0.132,3785.6,3785.4,2.64168365]
[1753087650882,0.132,3785.4,3785.2,2.64186571]
[1753087651082,0.132,3785.4,3785.0,2.64294707]
[1753087651083,0.03294487,3785.8,3785.3,2.64176455]
[1753087651282,0.132,3785.2,3785.1,2.64193812]
[1753087651483,4.382,3785.2,3785.1,2.64193812]
[1753087651716,0.132,3785.2,3785.1,2.64193812]
[1753087651917,4.381,3785.2,3785.1,2.64193812]
[1753087652119,0.132,3785.2,3785.1,2.98473812]
[1753087652322,4.249,3785.2,3785.1,3.59833635]
[1753087652527,4.249,3785.2,3785.0,0.001]
[1753087652745,6.68458299,3785.1,3785.0,0.001]
[1753087653386,10.93258299,3785.1,3785.0,0.001]
[1753087653603,10.89963812,3785.1,3785.0,0.001]
[1753087654228,8.2577,3785.1,3785.0,0.001]
[1753087654526,20.0585883,3785.1,3785.0,0.001]
[1753087656208,20.8582883,3785.1,3785.0,0.001]
[1753087656416,16.6102883,3785.1,3785.0,0.001]
[1753087656819,11.69833812,3785.1,3785.0,0.001]
[1753087657002,4.8094,3785.1,3785.0,0.001]
[1753087657422,9.0564,3785.1,3785.0,0.001]
[1753087657629,11.69833812,3785.1,3785.0,0.001]
[1753087657830,9.0564,3785.1,3785.0,0.001]
[1753087658028,4.8094,3785.1,3785.0,0.001]
[1753087658198,0.07856731,3956.9,3785.0,0.001]
[1753087658199,0.7624,3785.6,3785.2,2.64186312]
[1753087658397,0.03294487,3785.8,3785.4,2.64166199]
[1753087658737,4.7067,3785.7,3785.1,0.7597]
[1753087658937,0.03294487,3785.6,3785.0,0.001]
[1753087659137,2.64173292,3785.4,3785.0,0.001]
[1753087659437,4.82894487,3785.3,3785.0,0.001]
[1753087659626,4.246,3785.2,3785.0,0.001]
[1753087659800,0.58294487,3785.1,3785.0,0.001]
[1753087660000,4.246,3785.1,3785.0,2.64300792]
[1753087660201,5.6127,3785.1,3785.0,0.001]
[1753087660400,4.246,3785.1,3785.0,0.001]
[1753087660601,0.55,3785.4,3785.0,0.001]
[1753087660906,4.245,3785.3,3785.2,2.64186832]
[1753087661303,4.245,3785.3,3785.1,2.64191828]
[1753087661639,4.27794487,3785.3,3785.1,2.64191828]
[1753087661836,0.03294487,3785.3,3785.0,0.001]
[1753087662042,4.245,3785.2,3785.0,0.001]
[1753087662207,4.245,3785.2,3785.1,2.64193812]
[1753087662547,4.245,3785.2,3785.0,0.001]
[1753087662702,4.377,3785.2,3785.1,1.156]
[1753087662903,4.377,3785.2,3785.1,3.79793812]
[1753087663143,4.376,3785.2,3785.1,3.79793812]
[1753087663636,0.132,3785.2,3785.1,3.45513812]
[1753087664025,4.376,3785.2,3785.1,3.79793812]
[1753087664621,4.376,3785.2,3785.1,4.44468175]
[1753087664909,4.376,3785.2,3785.1,3.45513812]
[1753087666239,4.376,3785.2,3785.0,0.001]
[1753087666240,4.87134487,3785.2,3785.0,0.001]
[1753087666426,4.376,3785.2,3785.0,0.001]
[1753087666621,0.132,3785.2,3785.0,0.001]
[1753087666826,4.243,3785.1,3785.0,2.64295612]
[1753087667251,0.132,3785.2,3785.0,2.64295612]
[1753087667453,0.132,3785.2,3785.1,2.64193812]
[1753087667862,4.374,3785.2,3785.1,2.64193812]
[1753087668560,0.132,3785.2,3785.1,2.64193812]
[1753087668762,4.373,3785.2,3785.1,2.64193812]
[1753087668967,0.132,3785.2,3785.1,2.64193812]
[1753087669466,4.373,3785.2,3785.0,2.64298263]
[1753087669975,4.373,3785.2,3785.0,0.001]
[1753087670260,1.04534487,3785.1,3785.0,0.001]
[1753087670465,0.03294487,3785.1,3785.0,0.001]
[1753087670664,0.132,3785.2,3785.1,3.42893812]
[1753087670827,0.7791,3786.5,3785.9,2.6413763]
[1753087671028,0.4624,3786.7,3785.8,0.7684]
[1753087671258,4.24,3786.1,3785.9,2.64133584]
[1753087671434,0.132,3785.9,3785.5,0.7684]
[1753087671763,0.132,3785.9,3785.8,2.64144962]
[1753087671961,4.27294487,3786.0,3785.8,2.64144962]
[1753087672163,4.27294487,3786.0,3785.9,2.64137985]
[1753087672370,0.4624,3786.7,3786.1,2.64124032]
[1753087672669,0.03294487,3786.6,3785.5,0.7684]
[1753087672971,0.132,3785.9,3785.6,2.64158918]
[1753087673188,4.239,3785.8,3785.6,2.64158918]
[1753087673389,0.132,3785.7,3785.6,2.64158918]
[1753087676944,0.132,3785.7,3785.5,2.64161378]
[1753087677143,0.132,3785.7,3785.6,2.64158918]
[1753087677556,0.132,3785.7,3785.4,2.6417254]
[1753087677980,0.132,3785.7,3785.3,2.64178808]
[1753087678346,0.132,3785.7,3785.6,2.64158918]
[1753087679798,4.368,3785.7,3785.6,2.64158918]
[1753087680647,4.368,3785.7,3785.5,2.64165419]
[1753087680892,10.96695018,3785.6,3785.0,0.001]
[1753087681051,11.8008883,3785.1,3785.0,0.001]
[1753087681250,16.0358883,3785.1,3785.0,0.001]
[1753087681580,0.4624,3785.1,3785.0,0.001]
[1753087681887,0.58294487,3785.1,3785.0,0.001]
[1753087682056,4.81794487,3785.1,3785.0,0.001]
[1753087682243,1.04534487,3785.1,3785.0,0.001]
[1753087682648,5.27934487,3785.1,3785.0,0.001]
[1753087682985,1.04534487,3785.1,3785.0,0.001]
[1753087683192,4.784,3785.1,3785.0,0.001]
[1753087683611,0.03294487,3785.2,3785.1,0.001]
[1753087683808,4.234,3785.2,3785.1,2.64293812]
[1753087684109,0.03294487,3785.7,3785.3,2.6417517]
[1753087684288,0.132,3785.2,3785.1,2.64293812]
[1753087684464,4.365,3785.2,3785.1,2.64293812]
[1753087684659,0.03294487,3785.9,3785.1,3.28956645]
[1753087684858,0.132,3785.5,3785.1,3.3159838]
[1753087685057,0.03294487,3786.2,3785.8,2.64140282]
[1753087685297,3.41431563,3786.0,3785.1,0.001]
[1753087685563,1.3423,3785.5,3785.1,0.001]
[1753087685774,0.55,3785.3,3785.1,0.001]
[1753087685977,0.7923,3785.5,3785.1,0.001]
[1753087685978,3.11294487,3785.2,3785.1,0.001]
[1753087686178,7.34594487,3785.2,3785.1,0.001]
[1753087686381,8.3254,3785.2,3785.1,0.001]
[1753087687059,10.96726832,3785.2,3785.1,0.001]
[1753087687683,11.75956832,3785.2,3785.1,0.001]
[1753087688172,14.75956832,3785.2,3785.1,0.001]
[1753087688401,14.75856832,3785.2,3785.1,0.001]
[1753087689805,7.8847,3785.2,3785.1,0.001]
[1753087690106,4.782,3785.2,3785.1,0.001]
[1753087690505,4.81494487,3785.2,3785.1,0.001]
[1753087690892,5.26234487,3785.2,3785.1,0.001]
[1753087691212,4.232,3785.2,3785.1,0.001]
[1753087691616,0.03294487,3785.3,3785.1,2.64293812]
[1753087691920,4.231,3785.2,3785.1,2.64288726]
[1753087692074,4.231,3785.2,3785.1,0.001]
[1753087692506,4.6784,3785.2,3785.1,0.001]
[1753087692895,4.231,3785.2,3785.1,0.001]
[1753087693098,4.781,3785.2,3785.1,0.001]
[1753087693294,5.2284,3785.2,3785.1,0.001]
[1753087693510,5.26134487,3785.2,3785.1,0.001]
[1753087694309,7.90321319,3785.2,3785.1,0.001]
[1753087694611,11.68896832,3785.2,3785.1,0.001]
[1753087695218,4.8161,3785.2,3785.1,0.001]
[1753087695420,5.63164487,3785.2,3785.1,0.001]
[1753087695583,0.58294487,3785.2,3785.1,0.001]
[1753087695785,4.81294487,3785.2,3785.1,0.001]
[1753087696493,7.90221319,3785.2,3785.1,0.001]
[1753087696834,11.76856832,3785.2,3785.1,0.001]
[1753087698411,14.76856832,3785.2,3785.1,0.001]
[1753087698915,10.53856832,3785.2,3785.1,0.001]
[1753087699117,14.76756832,3785.2,3785.1,0.001]